fUSD/lending_fUSD_20260308
["ID","MTS","AMOUNT","RATE_DAILY","PERIOD"]
[407974361,1772955048203,-500.0,0.00049315,120]
[407974362,1772955048212,-500.0,0.00049315,120]
[407974363,1772955048221,-500.0,0.00049315,120]
[407974364,1772955048230,-583.84080946,0.00049315,120]
[407974365,1772955048240,-500.0,0.00049315,120]
[407974366,1772955048249,-500.0,0.00049315,120]
[407974367,1772955048258,-500.0,0.00049315,120]
[407974368,1772955048267,-500.0,0.00049315,120]
[407974369,1772955048277,-500.0,0.00049315,120]
[407974370,1772955048290,-354.18072769,0.00049315,120]
[407974371,1772955048298,-500.0,0.00049315,120]
[407974372,1772955048307,-500.0,0.00049315,120]
[407974373,1772955048316,-500.0,0.00049315,120]
[407974374,1772955048326,-500.0,0.00049315,120]
[407974375,1772955048335,-500.0,0.00049315,120]
[407974376,1772955048344,-500.0,0.00049315,120]
[407974377,1772955048354,-500.0,0.00049315,120]
[407974378,1772955048367,-500.0,0.00049315,120]
[407974379,1772955048376,-500.0,0.00049315,120]
[407974380,1772955048385,-510.68687049,0.00049315,120]
[407974381,1772955048394,-500.0,0.00049315,120]
[407974382,1772955048403,-500.0,0.00049315,120]
[407974383,1772955048413,-500.0,0.00049315,120]
[407974384,1772955048422,-500.0,0.00049315,120]
[407974385,1772955048430,-500.0,0.00049315,120]
[407974386,1772955048440,-316.10529773,0.00049315,120]
[407974387,1772955048449,-624.97,0.00049315,120]
[407974388,1772955048458,-624.97,0.00049315,120]
[407974389,1772955048467,-624.97,0.00049315,120]
[407974390,1772955048476,-624.97,0.00049315,120]
[407974391,1772955048485,-624.97,0.00049315,120]
[407974392,1772955048494,-624.97,0.00049315,120]
[407974393,1772955048503,-624.97,0.00049315,120]
[407974394,1772955048512,-624.97,0.00049315,120]
[407974395,1772955048521,-624.97,0.00049315,120]
[407974396,1772955048530,-624.97,0.00049315,120]
[407974397,1772955048539,-624.97,0.00049315,120]
[407974398,1772955048548,-624.97,0.00049315,120]
[407974399,1772955048558,-624.97,0.00049315,120]
[407974400,1772955048567,-624.97,0.00049315,120]
[407974401,1772955048577,-624.97,0.00049315,120]
[407974402,1772955048587,-624.97,0.00049315,120]
[407974403,1772955048597,-624.97,0.00049315,120]
[407974404,1772955048606,-624.97,0.00049315,120]
[407974405,1772955048615,-624.97,0.00049315,120]
[407974406,1772955048624,-624.97,0.00049315,120]
[407974407,1772955048633,-624.97,0.00049315,120]
[407974408,1772955048642,-624.97,0.00049315,120]
[407974409,1772955048652,-624.97,0.00049315,120]
[407974410,1772955048661,-625.07,0.00049315,120]
[407974411,1772955048670,-150.0,0.00049315,120]
[407974412,1772955048680,-523.09,0.00049315,120]
[407974413,1772955048689,-523.09,0.00049315,120]
[407974414,1772955048698,-523.09,0.00049315,120]
[407974415,1772955048708,-523.09,0.00049315,120]
[407974416,1772955048717,-523.09,0.00049315,120]
[407974417,1772955048727,-523.09,0.00049315,120]
[407974418,1772955048736,-523.09,0.00049315,120]
[407974419,1772955048745,-523.09,0.00049315,120]
[407974420,1772955048755,-523.09,0.00049315,120]
[407974421,1772955048764,-523.09,0.00049315,120]
[407974422,1772955048773,-523.09,0.00049315,120]
[407974423,1772955048783,-523.09,0.00049315,120]
[407974424,1772955048792,-523.09,0.00049315,120]
[407974425,1772955048802,-523.09,0.00049315,120]
[407974426,1772955048811,-523.09,0.00049315,120]
[407974427,1772955048821,-523.09,0.00049315,120]
[407974428,1772955048830,-523.09,0.00049315,120]
[407974429,1772955048839,-523.09,0.00049315,120]
[407974430,1772955048849,-523.09,0.00049315,120]
[407974431,1772955048858,-523.09,0.00049315,120]
[407974432,1772955048868,-523.09,0.00049315,120]
[407974433,1772955048877,-523.09,0.00049315,120]
[407974434,1772955048886,-523.09,0.00049315,120]
[407974435,1772955048896,-523.29041986,0.00049315,120]
[407974436,1772955048905,-500.0,0.00049315,120]
[407974437,1772955048914,-500.0,0.00049315,120]
[407974438,1772955048923,-500.0,0.00049315,120]
[407974439,1772955048932,-500.0,0.00049315,120]
[407974440,1772955048941,-500.0,0.00049315,120]
[407974441,1772955048950,-500.0,0.00049315,120]
[407974442,1772955048959,-500.0,0.00049315,120]
[407974443,1772955048969,-500.0,0.00049315,120]
[407974444,1772955048978,-500.0,0.00049315,120]
[407974445,1772955048987,-500.0,0.00049315,120]
[407974446,1772955048996,-500.0,0.00049315,120]
[407974447,1772955049005,-500.0,0.00049315,120]
[407974448,1772955049014,-500.0,0.00049315,120]
[407974449,1772955049024,-500.0,0.00049315,120]
[407974450,1772955049034,-500.0,0.00049315,120]
[407974451,1772955049043,-500.0,0.00049315,120]
[407974452,1772955049052,-350.92088219,0.00049315,120]
[407974453,1772955049061,-520.95,0.00049315,120]
[407974454,1772955049071,-520.95,0.00049315,120]
[407974455,1772955049079,-520.95,0.00049315,120]
[407974456,1772955049088,-520.95,0.00049315,120]
[407974457,1772955049098,-520.95,0.00049315,120]
[407974458,1772955049106,-520.95,0.00049315,120]
[407974459,1772955049115,-520.95,0.00049315,120]
[407974460,1772955049124,-520.95,0.00049315,120]
[407974461,1772955049133,-520.95,0.00049315,120]
[407974462,1772955049142,-520.95,0.00049315,120]
[407974463,1772955049150,-520.95,0.00049315,120]
[407974464,1772955049160,-520.95,0.00049315,120]
[407974465,1772955049169,-520.95,0.00049315,120]
[407974466,1772955049178,-520.95,0.00049315,120]
[407974467,1772955049187,-520.95,0.00049315,120]
[407974468,1772955049196,-520.95,0.00049315,120]
[407974469,1772955049206,-520.95,0.00049315,120]
[407974470,1772955049215,-520.95,0.00049315,120]
[407974471,1772955049225,-520.95,0.00049315,120]
[407974472,1772955049234,-520.95,0.00049315,120]
[407974473,1772955049244,-520.95,0.00049315,120]
[407974474,1772955049253,-520.95,0.00049315,120]
[407974475,1772955049263,-520.95,0.00049315,120]
[407974476,1772955049272,-521.18282094,0.00049315,120]
[407974477,1772955049281,-717.77,0.00049315,120]
[407974478,1772955049295,-717.77,0.00049315,120]
[407974479,1772955049305,-717.77,0.00049315,120]
[407974480,1772955049314,-717.77,0.00049315,120]
[407974481,1772955049324,-717.77,0.00049315,120]
[407974482,1772955049334,-717.77,0.00049315,120]
[407974483,1772955049343,-717.77,0.00049315,120]
[407974484,1772955049353,-717.77,0.00049315,120]
[407974485,1772955049363,-717.77,0.00049315,120]
[407974486,1772955049374,-717.77,0.00049315,120]
[407974487,1772955049384,-717.77,0.00049315,120]
[407974488,1772955049394,-717.77,0.00049315,120]
[407974489,1772955049403,-717.77,0.00049315,120]
[407974490,1772955049413,-717.77,0.00049315,120]
[407974491,1772955049423,-717.77,0.00049315,120]
[407974492,1772955049433,-717.77,0.00049315,120]
[407974493,1772955049443,-717.77,0.00049315,120]
[407974494,1772955049453,-717.77,0.00049315,120]
[407974495,1772955049462,-717.77,0.00049315,120]
[407974496,1772955049473,-717.77,0.00049315,120]
[407974497,1772955049483,-717.77,0.00049315,120]
[407974498,1772955049492,-717.77,0.00049315,120]
[407974499,1772955049502,-717.77,0.00049315,120]
[407974500,1772955049512,-717.79528834,0.00049315,120]
[407974501,1772955049522,-500.0,0.00049315,120]
[407974502,1772955049531,-500.0,0.00049315,120]
[407974503,1772955049541,-500.0,0.00049315,120]
[407974504,1772955049550,-500.0,0.00049315,120]
[407974505,1772955049560,-500.0,0.00049315,120]
[407974506,1772955049570,-500.0,0.00049315,120]
[407974507,1772955049580,-362.57988751,0.00049315,120]
[407974508,1772955049589,-643.56,0.00049315,120]
[407974509,1772955049598,-643.56,0.00049315,120]
[407974510,1772955049608,-643.56,0.00049315,120]
[407974511,1772955049618,-643.56,0.00049315,120]
[407974512,1772955049627,-643.56,0.00049315,120]
[407974513,1772955049636,-643.56,0.00049315,120]
[407974514,1772955049646,-643.56,0.00049315,120]
[407974515,1772955049656,-152.71141018,0.00049315,60]
[407974516,1772955049665,-643.56,0.00049315,120]
[407974517,1772955049674,-643.56,0.00049315,120]
[407974518,1772955049683,-643.56,0.00049315,120]
[407974519,1772955049693,-643.56,0.00049315,120]
[407974520,1772955049702,-643.56,0.00049315,120]
[407974521,1772955049711,-643.56,0.00049315,120]
[407974522,1772955049720,-643.56,0.00049315,120]
[407974523,1772955049730,-643.56,0.00049315,120]
[407974524,1772955049739,-643.56,0.00049315,120]
[407974525,1772955049749,-643.56,0.00049315,120]
[407974526,1772955049759,-643.56,0.00049315,120]
[407974527,1772955049769,-643.56,0.00049315,120]
[407974528,1772955049778,-643.56,0.00049315,120]
[407974529,1772955049787,-643.56,0.00049315,120]
[407974530,1772955049797,-643.56,0.00049315,120]
[407974531,1772955049806,-643.56,0.00049315,120]
[407974532,1772955049816,-643.79871647,0.00049315,120]
[407974533,1772955049825,-216.1108027,0.00049315,120]
[407974534,1772955049834,-500.0,0.00049315,120]
[407974535,1772955049844,-500.0,0.00049315,120]
[407974536,1772955049854,-500.0,0.00049315,120]
[407974537,1772955049863,-500.0,0.00049315,120]
[407974538,1772955049873,-500.0,0.00049315,120]
[407974539,1772955049883,-500.0,0.00049315,120]
[407974540,1772955049892,-500.0,0.00049315,120]
[407974541,1772955049902,-500.0,0.00049315,120]
[407974542,1772955049912,-500.0,0.00049315,120]
[407974543,1772955049922,-500.0,0.00049315,120]
[407974544,1772955049931,-500.0,0.00049315,120]
[407974545,1772955049940,-381.0527943,0.00049315,120]
[407974546,1772955049950,-500.0,0.00049315,120]
[407974547,1772955049960,-500.0,0.00049315,120]
[407974548,1772955049970,-536.51913395,0.00049315,120]
[407974549,1772955049980,-151.0,0.00049315,60]
[407974550,1772955049989,-500.0,0.00049315,2]
[407974551,1772955049999,-500.0,0.00049315,2]
[407974552,1772955050008,-500.0,0.00049315,2]
[407974553,1772955050017,-500.0,0.00049315,2]
[407974554,1772955050027,-500.0,0.00049315,2]
[407974555,1772955050036,-500.0,0.00049315,2]
[407974556,1772955050046,-500.0,0.00049315,2]
[407974557,1772955050055,-500.0,0.00049315,2]
[407974558,1772955050064,-500.0,0.00049315,2]
[407974559,1772955050074,-500.0,0.00049315,2]
[407974560,1772955050084,-500.0,0.00049315,2]
[407974561,1772955050094,-500.0,0.00049315,2]
[407974562,1772955050103,-500.0,0.00049315,2]
[407974563,1772955050112,-500.0,0.00049315,2]
[407974564,1772955050122,-500.0,0.00049315,2]
[407974565,1772955050132,-500.0,0.00049315,2]
[407974566,1772955050141,-500.0,0.00049315,2]
[407974567,1772955050151,-500.0,0.00049315,2]
[407974568,1772955050161,-151.0,0.00049315,120]
[407974569,1772955050170,-500.0,0.00049315,2]
[407974570,1772955050179,-499.7,0.00049315,2]
[407974571,1772955050188,-151.0,0.00049315,120]
[407974572,1772955050199,-506.93,0.00049315,2]
[407974573,1772955050208,-506.93,0.00049315,2]
[407974574,1772955050217,-506.93,0.00049315,2]
[407974575,1772955050225,-506.93,0.00049315,2]
[407974576,1772955050235,-506.93,0.00049315,2]
[407974577,1772955050244,-506.93,0.00049315,2]
[407974578,1772955050254,-506.93,0.00049315,2]
[407974579,1772955050264,-506.93,0.00049315,2]
[407974580,1772955050273,-506.93,0.00049315,2]
[407974581,1772955050283,-506.93,0.00049315,2]
[407974582,1772955050297,-506.93,0.00049315,2]
[407974583,1772955050307,-506.93,0.00049315,2]
[407974584,1772955050316,-506.93,0.00049315,2]
[407974585,1772955050326,-506.93,0.00049315,2]
[407974586,1772955050338,-506.93,0.00049315,2]
[407974587,1772955050348,-506.93,0.00049315,2]
[407974588,1772955050357,-506.93,0.00049315,2]
[407974589,1772955050368,-506.93,0.00049315,2]
[407974590,1772955050377,-506.93,0.00049315,2]
[407974591,1772955050387,-506.93,0.00049315,2]
[407974592,1772955050396,-506.93,0.00049315,2]
[407974593,1772955050405,-1000.0,0.00049333,30]
[407974594,1772955050415,-1000.0,0.00049343,30]
[407974595,1772955050425,-1000.0,0.00049405,30]
[407974596,1772955050435,-500.0,0.00049417,60]
[407974597,1772955050444,-500.0,0.00049417,60]
[407974598,1772955050454,-1000.0,0.00049428,30]
[407974599,1772955050463,-1000.0,0.00049431,30]
[407974600,1772955050472,-1000.0,0.00049441,30]
[407974601,1772955050482,-150.0,0.00049449,30]
[407974602,1772955050491,-400.0,0.000495,30]
[407974603,1772955050500,-1000.0,0.00049507,30]
[407974604,1772955050509,-695.77535508,0.0004952,120]
[407974605,1772955050518,-1000.0,0.00049567,30]
[407974606,1772955050527,-1000.0,0.00049568,30]
[407974607,1772955050537,-14290.26,0.000496,120]
[407974608,1772955050546,-1000.0,0.00049632,30]
[407974609,1772955050556,-1000.0,0.00049654,30]
[407974610,1772955050565,-14290.26,0.0004968,120]
[407974611,1772955050575,-150.0,0.00049687,30]
[407974612,1772955050584,-1000.0,0.000497,30]
[407974613,1772955050594,-200.0,0.000497,35]
[407974614,1772955050603,-181.29332165,0.000497,9]
[407974615,1772955050612,-161.0,0.00049706,7]
[407974616,1772955050623,-1000.0,0.00049722,30]
[407974617,1772955050634,-500.0,0.00049726,2]
[407974618,1772955050644,-1000.0,0.00049729,30]
[407974619,1772955050653,-155.05476178,0.00049735,30]
[407974620,1772955050662,-500.0,0.00049745,120]
[407974621,1772955050673,-204.304387,0.00049745,120]
[407974622,1772955050683,-2798.0,0.00049747,66]
[407974623,1772955050692,-234.0,0.00049753,60]
[407974624,1772955050702,-1000.0,0.00049782,30]
[407974625,1772955050712,-1000.0,0.00049786,30]
[407974626,1772955050721,-314.95102324,0.000498,7]
[407974627,1772955050730,-172.58447564,0.000498,7]
[407974628,1772955050740,-10443.19335639,0.000498,120]
[407974629,1772955050749,-761054.2889519,0.000498,120]
[407974630,1772955050759,-212.05,0.000498,120]
[407974631,1772955050769,-153.955216,0.000498,120]
[407974632,1772955050779,-151.0,0.000498,14]
[407974633,1772955050788,-151.0,0.000498,14]
[407974634,1772955050798,-617.79161054,0.000498,37]
[407974635,1772955050807,-151.0,0.000498,120]
[407974636,1772955050817,-151.0,0.000498,120]
[407974637,1772955050826,-151.0,0.000498,120]
[407974638,1772955050836,-2000.0,0.000498,120]
[407974639,1772955050846,-409.118743,0.000498,120]
[407974640,1772955050855,-409.118743,0.000498,120]
[407974641,1772955050864,-409.118743,0.000498,120]
[407974642,1772955050874,-409.118743,0.000498,120]
[407974643,1772955050890,-151.0,0.000498,120]
[407974644,1772955050900,-945.94918297,0.000498,2]
[407974645,1772955050909,-4391.366336,0.000498,120]
[407974646,1772955050919,-4391.366336,0.000498,120]
[407974647,1772955050929,-4391.366336,0.000498,120]
[407974648,1772955050938,-4391.366336,0.000498,120]
[407974649,1772955050948,-177.095349,0.000498,7]
[407974650,1772955050958,-831.47331414,0.000498,2]
[407974651,1772955050967,-177.095349,0.000498,7]
[407974652,1772955050977,-177.095349,0.000498,7]
[407974653,1772955050987,-177.095349,0.000498,7]
[407974654,1772955050996,-151.0,0.000498,60]
[407974655,1772955051005,-151.0,0.000498,120]
[407974656,1772955051015,-151.0,0.000498,120]
[407974657,1772955051024,-350.0,0.00049813,11]
[407974658,1772955051034,-150.0,0.00049841,30]
[407974659,1772955051043,-300.0,0.00049863,120]
[407974660,1772955051053,-1000.0,0.00049869,30]
[407974661,1772955051062,-2596086.12421241,0.00049873,15]
[407974662,1772955051148,-46083.07634884,0.00049873,15]
[407974663,1772955051164,-5992.0,0.00036429,2]
[407974664,1772955051173,-3140297.1159298,0.00049873,15]
[407974665,1772955051188,-506.93,0.00049315,2]
[407974666,1772955051197,-247.35381952,0.00049873,15]
[407974667,1772955051243,-2200.0,0.00027397,10]
[407974668,1772955051255,-3547.72641833,0.00027397,10]
[407974669,1772955051266,-438.70826076,0.00027397,10]
[407974670,1772955051356,-152.86532091,0.00027397,10]
[407974671,1772955051366,-150.2785,0.00031513,30]
[407974672,1772955051377,-144.5069508,0.00039429,2]
[407974673,1772955051389,-5847.4930492,0.00039429,2]
[407974674,1772955051399,-500.0,0.00043313,120]
[407974675,1772955051409,-500.0,0.00043313,120]
[407974676,1772955051420,-500.0,0.00043313,120]
[407974677,1772955051429,-500.0,0.00043313,120]
[407974678,1772955051439,-500.0,0.00043313,120]
[407974679,1772955051450,-500.0,0.00043313,120]
[407974680,1772955051459,-281.51,0.00045,30]
[407974681,1772955051469,-197.66,0.00045,30]
[407974682,1772955051479,-271.19576931,0.00046163,18]
[407974683,1772955051489,-197.66,0.0004725,30]
[407974684,1772955051499,-506.93,0.00049315,2]
[407974685,1772955051509,-507.03505243,0.00049315,2]
[407974686,1772955051519,-7841.94828533,0.00049873,15]
[407974687,1772955051535,-500.0,0.00043313,120]
[407974688,1772955051545,-594.05268041,0.00049873,15]
[407974689,1772955051558,-1844.77165021,0.00049873,15]
[407974690,1772955139738,500.0,8e-05,2]
[407974691,1772955140008,500.0,8e-05,2]
[407974692,1772955140227,500.0,8e-05,2]
[407974693,1772955140691,500.0,8e-05,2]
[407974694,1772955141163,500.0,8e-05,2]
[407974695,1772955143209,500.0,8e-05,2]
[407974696,1772955143723,500.0,8e-05,2]
[407974697,1772955145541,500.0,8e-05,2]
[407974698,1772955309736,162.62,0.00010595,2]
[407974700,1772955436559,500.0,8e-05,2]
[407974701,1772955437107,511.52465437,8e-05,2]
[407974702,1772955437600,932.24328072,8e-05,2]
[407974711,1772956231304,-153.49,0.00012129,2]
[407974712,1772956231314,-251.0,0.00012273,2]
[407974713,1772956231324,-527.4,0.00012335,2]
[407974714,1772956231335,-255.51004428,0.00012335,2]
[407974715,1772956231346,-402.62563387,0.00012335,2]
[407974716,1772956231375,-867.61452967,0.00012335,2]
[407974717,1772956231386,-1127.65979218,0.00012335,2]
[407974718,1772956231396,-1000.0,0.00012555,2]
[407974719,1772956231406,-250.0,0.00012571,2]
[407974720,1772956231416,-1200.0,0.00012607,2]
[407974721,1772956231426,-338.8535188,0.00012608,2]
[407974722,1772956231435,-150.0,0.00012618,2]
[407974723,1772956231445,-250.0,0.00012633,2]
[407974724,1772956231455,-300.0,0.00012642,2]
[407974725,1772956231464,-1703.42883402,0.00012643,2]
[407974726,1772956231477,-1477.38116598,0.00012643,2]
[407974727,1772956231487,-1200.0,0.00012758,2]
[407974728,1772956231497,-15578.25,0.00012759,2]
[407974729,1772956231507,-150.0,0.00012846,2]
[407974730,1772956231516,-47707.98026705,0.00012847,2]
[407974731,1772956231526,-6805.67119325,0.00012847,2]
[407974732,1772956231536,-500.0,0.00012946,2]
[407974733,1772956231546,-500.0,0.00012946,2]
[407974734,1772956231556,-500.0,0.00012946,2]
[407974736,1772956231565,-525.08926857,0.00012946,2]
[407974737,1772956231576,-9999.99,0.00012947,2]
[407974738,1772956231586,-9999.99,0.00012947,2]
[407974739,1772956231595,-6594.12,0.00012947,2]
[407974740,1772956231605,-150.99,0.00012947,2]
[407974741,1772956231619,-9999.99,0.00012947,2]
[407974742,1772956231629,-266.98327779,0.00012947,2]
[407974743,1772956231641,-939.87672221,0.00012947,2]
[407974744,1772956231651,-9999.99,0.00012947,2]
[407974745,1772956231661,-9999.99,0.00012947,2]
[407974746,1772956231671,-999.99,0.00012947,2]
[407974747,1772956231681,-4481.75077654,0.00012947,2]
[407974748,1772956231695,-11108.45347406,0.00012947,2]
[407974749,1772956231706,-9412.5,0.00012947,2]
[407974755,1772956237399,-828.73,0.00012068,2]
[407974756,1772956237459,-2437.672145,0.00012068,2]
[407974757,1772956237469,-177157.0157494,0.00012947,2]
[407974758,1772956237479,-2990.34,0.00012947,2]
[407974759,1772956237488,-499.99,0.00012947,2]
[407974760,1772956237498,-299.99,0.00012947,2]
[407974761,1772956237507,-150.99,0.00012947,2]
[407974762,1772956237517,-3180.81,0.00012952,2]
[407974763,1772956237526,-501.60917986,0.00012973,2]
[407974764,1772956237536,-501.73172292,0.00012973,2]
[407974765,1772956237546,-500.0,0.00012973,2]
[407974766,1772956237555,-500.0,0.00012973,2]
[407974767,1772956237566,-500.0,0.00012973,2]
[407974768,1772956237576,-153.49,0.00012995,2]
[407974769,1772956237585,-718.0,0.00013028,2]
[407974770,1772956237595,-163.37540888,0.00013028,2]
[407974771,1772956237605,-11783.03,0.0001303,2]
[407974772,1772956237616,-1356.0,0.00013068,2]
[407974773,1772956237631,-1730.0,0.00013179,2]
[407974774,1772956237640,-331.92107206,0.00013179,2]
[407974775,1772956237649,-557.36125053,0.00013206,2]
[407974776,1772956237658,-3180.81,0.0001326,2]
[407974777,1772956237670,-500.0,0.00013399,2]
[407974778,1772956237679,-15886.13607144,0.00013399,2]
[407974779,1772956237691,-225.0,0.00013474,2]
[407974780,1772956237701,-1403.21204333,0.00013499,2]
[407974781,1772956237711,-500.0,0.00013499,2]
[407974782,1772956237720,-500.0,0.00013499,2]
[407974783,1772956237729,-500.0,0.00013499,2]
[407974784,1772956237739,-500.0,0.00013499,2]
[407974785,1772956237748,-500.0,0.00013499,2]
[407974786,1772956237758,-500.0,0.00013499,2]
[407974787,1772956237767,-500.0,0.00013499,2]
[407974788,1772956237777,-500.0,0.00013499,2]
[407974789,1772956237786,-500.0,0.00013499,2]
[407974790,1772956237795,-500.0,0.00013499,2]
[407974791,1772956237805,-500.0,0.00013499,2]
[407974792,1772956237814,-333.18627222,0.00013499,2]
[407974793,1772956237824,-1056.5346,0.00013499,2]
[407974794,1772956237833,-249.5789201,0.000135,2]
[407974795,1772956237843,-445.18376342,0.000135,2]
[407974796,1772956237852,-410.03128436,0.000135,2]
[407974797,1772956237861,-884.16767688,0.000135,2]
[407974798,1772956237871,-742.305403,0.000135,2]
[407974799,1772956237880,-8254.7812275,0.000135,2]
[407974800,1772956237890,-193.7602404,0.000135,2]
[407974801,1772956237900,-1590.0,0.00013507,2]
[407974802,1772956237909,-135284.16777466,0.0001351,2]
[407974803,1772956237918,-377.19034911,0.00013512,2]
[407974804,1772956237929,-1000.0,0.00013521,2]
[407974805,1772956237938,-1000.0,0.00013521,2]
[407974806,1772956237947,-1000.0,0.00013521,2]
[407974807,1772956237956,-497.005,0.00013562,2]
[407974808,1772956237966,-570.0,0.00013562,2]
[407974809,1772956237975,-3180.81,0.00013568,2]
[407974810,1772956237984,-152.46098348,0.00013572,2]
[407974811,1772956237994,-230.00786375,0.00013573,2]
[407974812,1772956238003,-500.41098414,0.00013573,2]
[407974813,1772956238011,-486.08739052,0.0001359,2]
[407974814,1772956238020,-151.0,0.00013591,2]
[407974815,1772956238029,-151.0,0.00013591,2]
[407974816,1772956238038,-151.0,0.00013591,2]
[407974817,1772956238047,-151.0,0.00013591,2]
[407974818,1772956238057,-151.0,0.00013591,2]
[407974819,1772956238066,-151.0,0.00013591,2]
[407974820,1772956238076,-151.0,0.00013591,2]
[407974821,1772956238085,-151.0,0.00013591,2]
[407974822,1772956238096,-151.0,0.00013591,2]
[407974823,1772956238106,-151.0,0.00013591,2]
[407974824,1772956238117,-151.0,0.00013591,2]
[407974825,1772956238126,-151.0,0.00013591,2]
[407974826,1772956238137,-151.0,0.00013591,2]
[407974827,1772956238147,-151.0,0.00013591,2]
[407974828,1772956238157,-151.0,0.00013591,2]
[407974829,1772956238166,-151.0,0.00013591,2]
[407974830,1772956238177,-151.0,0.00013591,2]
[407974831,1772956238187,-151.0,0.00013591,2]
[407974832,1772956238198,-151.0,0.00013591,2]
[407974833,1772956238209,-151.0,0.00013591,2]
[407974834,1772956238219,-151.0,0.00013596,2]
[407974835,1772956238228,-151.0,0.00013596,2]
[407974836,1772956238237,-151.0,0.00013597,2]
[407974837,1772956238247,-920.23,0.00013598,2]
[407974838,1772956238258,-293.82968012,0.00013599,2]
[407974839,1772956238267,-500.0,0.00013599,2]
[407974840,1772956238276,-264.82066551,0.00013599,2]
[407974841,1772956238286,-632.79511924,0.00013599,2]
[407974842,1772956238295,-500.0,0.00013599,2]
[407974843,1772956238303,-32923.6528,0.000136,2]
[407974844,1772956238313,-1297528.0347,0.000136,2]
[407974845,1772956238322,-168.0,0.00013612,2]
[407974846,1772956238331,-500.0,0.00013673,2]
[407974847,1772956238340,-500.0,0.00013698,2]
[407974848,1772956238348,-500.0,0.00013698,2]
[407974849,1772956238358,-500.0,0.00013698,2]
[407974850,1772956238367,-500.0,0.00013698,2]
[407974851,1772956238376,-500.0,0.00013698,2]
[407974852,1772956238385,-500.0,0.00013698,2]
[407974853,1772956238394,-516.64002131,0.00013698,2]
[407974854,1772956238403,-500.0,0.00013698,2]
[407974855,1772956238411,-500.0,0.00013698,2]
[407974856,1772956238420,-500.0,0.00013698,2]
[407974857,1772956238428,-500.0,0.00013698,2]
[407974858,1772956238437,-260.32523881,0.00013698,2]
[407974859,1772956238446,-500.0,0.00013698,2]
[407974860,1772956238455,-500.0,0.00013698,2]
[407974861,1772956238464,-500.0,0.00013698,2]
[407974862,1772956238473,-500.0,0.00013698,2]
[407974863,1772956238482,-500.0,0.00013698,2]
[407974864,1772956238490,-500.0,0.00013698,2]
[407974865,1772956238500,-500.0,0.00013698,2]
[407974866,1772956238508,-500.0,0.00013698,2]
[407974867,1772956238518,-500.0,0.00013698,2]
[407974868,1772956238527,-261.45915393,0.00013698,2]
[407974869,1772956238535,-500.0,0.00013698,2]
[407974870,1772956238544,-500.0,0.00013698,2]
[407974871,1772956238553,-500.0,0.00013698,2]
[407974872,1772956238562,-500.0,0.00013698,2]
[407974873,1772956238571,-500.0,0.00013698,2]
[407974874,1772956238580,-500.0,0.00013698,2]
[407974875,1772956238589,-500.0,0.00013698,2]